Cogmind - Beta 17.1 @@@ ROGUE MODE // 2026.09.21 @ 23:01:08 Player: lucasboxerhead Result: Destroyed by Y-45 Defender with Heavy Assault Rifle Performance ------------- Evolutions (1) 500 Regions Visited (2) 400 Robots Destroyed (29) 145 Value Destroyed (719) 719 Prototype IDs (0) 0 Alien Tech Used (0) 0 Bonus (0) 0 TOTAL SCORE: 1764 Bonus ------- None Cogmind --------- Core Integrity 0/400 Matter 280/300 Energy 72/100 System Corruption 2% Temperature Cool (9) Movement Core (100) Ox1 Location -9/Materials Parts ------- > --- POWER (1) -------- (None) > --- PROPULSION (4) --- (None) > --- UTILITY (2) ------ (None) > --- WEAPON (2) ------- Scythe Scythe > --- INVENTORY (5) ---- Improved Heat Sink Improved Sensor Array Improved Sensor Array Medium Armor Plating Light Assault Rifle Peak State ------------ > --- POWER ------------ Light Ion Engine > --- PROPULSION ------- Light Treads Light Treads Aluminum Leg Aluminum Leg > --- UTILITY ---------- Improved Heat Sink Medium Storage Unit > --- WEAPON ----------- Assault Rifle Light Assault Rifle > --- INVENTORY -------- Aluminum Leg Aluminum Leg Signal Interpreter EM Pulse Gun Small Laser [Rating: 11] Favorites ----------- Power Light Ion Engine Engine Light Ion Engine Propulsion Aluminum Leg Treads Light Treads Leg Aluminum Leg Utility Medium Storage Unit Device Improved Heat Sink Storage Medium Storage Unit Protection Light Armor Plating Weapon Assault Rifle Energy Gun Medium Laser Ballistic Gun Assault Rifle Launcher Grenade Launcher Slashing Weapon Scythe Build | -11 -10 -9 ------- Run | Yrd Mat Mat Slots Evolved 2 | . . 2 Power . | . . . Propulsion 2 | . . 2 Utility . | . . . Weapon . | . . . Parts Attached 26 | 6 7 13 Power 3 | 1 1 1 Engine 3 | 1 1 1 Core . | . . . Reactor . | . . . Propulsion 8 | 2 1 5 Treads 3 | 2 1 . Leg 5 | . . 5 Wheel . | . . . Hover . | . . . Flight . | . . . Utility 6 | 1 3 2 Device 3 | . 1 2 Storage 2 | 1 1 . Processor . | . . . Hackware . | . . . Protection 1 | . 1 . Artifact . | . . . Weapon 9 | 2 2 5 Energy Gun 3 | . . 3 Energy Cannon . | . . . Ballistic Gun 3 | 2 1 . Ballistic Cannon . | . . . Launcher 1 | . 1 . Special Weapon . | . . . Impact Weapon . | . . . Slashing Weapon 2 | . . 2 Piercing Weapon . | . . . Special Melee Weapon . | . . . Unidentified Prototypes . | . . . Parts Lost 15 | . 4 11 Power 3 | . 1 2 Propulsion 5 | . 1 4 Utility 2 | . 1 1 Weapon 5 | . 1 4 Highest Loss Streak 4 | . 3 4 To Critical Strikes . | . . . Average Backups 2 | . . 4 Power . | . . . Propulsion . | . . . Utility 1 | . . 2 Weapon 1 | . . 1 Tool/Special . | . . . Unused Backups 4 | . . 4 Power . | . . . Propulsion . | . . . Utility 3 | . . 3 Weapon 1 | . . 1 Tool/Special . | . . . Average Slot Usage (%) 88 | . 90 86 Engine 11 | . 12 10 Treads 16 | . 26 1 Leg 14 | . . 38 Device 6 | . 6 7 Storage 12 | . 14 10 Energy Gun 2 | . . 6 Ballistic Gun 19 | . 24 11 Launcher 1 | . 2 . Peak Build Rating 11 | 6 9 11 Average Rating 7 | 4 7 8 On Entrance 5 | . 6 9 Avg Prop Armor Cover (%) . | . . . Naked Turns 5 | . . 5 Heaviest Build 22 | 14 18 22 Greatest Support 40 | 40 40 40 Greatest Overweight (x) 1 | . . 1 Average Overweight (x) . | . . . Largest Inventory Capacity 10 | 8 10 10 Average Capacity 9 | 6 9 9 Most Carried 7 | . 7 7 Average Carried 2 | . . 4 Final Capacity 10 | 8 10 5 Final Carried 7 | . 7 5 Class Distribution -------------------- 64% | Scavenger-Mutant 35% | Mutant Dominant Class ---------------- Scavenger-Mutant | -10/Materials Scavenger-Mutant | -9/Materials Resources | -11 -10 -9 ----------- Run | Yrd Mat Mat Matter Collected 761 | 245 401 115 Remotely . | . . . Salvage Created 834 | . 455 379 Parts 51 | . 28 23 Haulers Intercepted 1 | . 1 . Recyclers Shooed 3 | . . 3 Parts Field Recycled . | . . . Retrieved Matter . | . . . Parts Self-Destructed . | . . . Prevented . | . . . Parts Restored . | . . . Kills | -11 -10 -9 ------- Run | Yrd Mat Mat Combat Hostiles Destroyed 25 | . 16 9 Guns 19 | . 11 8 AOE 6 | . 5 1 Classes Destroyed 8 | . 4 4 Builder 1 | . . 1 Hauler 1 | . 1 . Recycler 1 | . . 1 Watcher 1 | . 1 . Swarmer 10 | . 6 4 Grunt 13 | . 10 3 Duelist 1 | . . 1 Sentry 1 | . . 1 Best Kill Streak 4 | . 4 4 Combat Bots Only 3 | . 3 3 Max Kills in Single Turn 2 | . 2 2 Gunslinging 1 | . 1 . Exploded 2 | . 2 1 Melee . | . . . Uniques/NPCs Destroyed . | . . . Combat | -11 -10 -9 -------- Run | Yrd Mat Mat Hostile Shots Fired 251 | . 114 137 Missed 74 | . 35 39 Hits 177 | . 79 98 Melee 6 | . . 6 Projectile 171 | . 79 92 Critical Strikes 3 | . . 3 Damage Taken 2117 | . 918 1199 Core 583 | . 172 411 Absorbed by Shields . | . . . Core Remaining (%) 65 | 100 31 . Volleys Fired 111 | . 59 52 Largest 2 | . 2 2 Hottest 80 | . 50 80 Shots Fired 164 | . 95 69 Gun 155 | . 86 69 Cannon . | . . . Launcher 9 | . 9 . Special . | . . . Kinetic 116 | . 86 30 Thermal 16 | . . 16 Explosive 9 | . 9 . Electromagnetic 23 | . . 23 Robot Hit Streak 13 | . 13 7 Robot Miss Streak 4 | . 4 4 Penetration Max . | . . . Secondary Targets 8 | . 7 1 Max Gunslinging Chain 1 | . 1 1 Shots Hit Robots 103 | . 57 46 Core Hits 55 | 1 31 23 Critical Kills . | . . . Critical Parts Destroyed . | . . . Critical Strikes 1 | . . 1 Burn 1 | . . 1 Melee Attacks . | . . . Impact . | . . . Slashing . | . . . Piercing . | . . . Sneak Attacks . | . . . Combat Hostiles . | . . . Follow-up Attacks . | . . . Damage Inflicted 1796 | 1 1129 666 Guns 1165 | . 611 554 Cannons . | . . . Explosions 621 | . 517 104 Melee . | . . . Ramming 10 | 1 1 8 Kinetic 819 | . 611 208 Thermal 231 | . . 231 Explosive 517 | . 517 . Electromagnetic 219 | . . 219 Impact . | . . . Slashing . | . . . Piercing . | . . . Highest Corruption 2 | . . 2 Average Corruption 2 | . . 2 Corruption Purged . | . . . Corruption Blocked . | . . . Effects 5 | . . 5 Message Errors 1 | . . 1 Matter Fused 1 | . . 1 Energy Discharges 1 | . . 1 Parts Fused 1 | . . 1 Data Loss (minor) 1 | . . 1 Overload Shots . | . . . Overflow Damage . | . . . Projectiles . | . . . Explosions . | . . . Melee . | . . . Knockbacks . | . . . Impact . | . . . Kinetic . | . . . Secondary . | . . . Self-Inflicted Damage 29 | . 5 24 Shots 2 | . 1 1 Rammed 6 | 3 1 2 Targets Rammed 7 | 3 1 3 Kicked 1 | . . 1 Crushed . | . . . Highest Temperature 156 | . 68 156 Average Temperature 47 | . 30 54 Received Heat Transfer 672 | . 432 240 Siege Activations . | . . . Martial Activations . | . . . Shielding Activations . | . . . Robots Disrupted 1 | . . 1 Combat Hostiles 1 | . . 1 Robots Corrupted . | . . . Combat Hostiles . | . . . Parts Fried . | . . . Impact Corruptions . | . . . Robots Melted . | . . . Combat Hostiles . | . . . Parts Melted . | . . . Heat Transferred 547 | . . 547 Parts Sabotaged . | . . . Parts Stolen . | . . . Parts Stripped . | . . . Power Chain Reactions 1 | . . 1 Alert | -11 -10 -9 ------- Run | Yrd Mat Mat Maximum Alert Level 1 | . 1 . Low Security (%) 93 | 100 88 100 Level 1 6 | . 11 . Level 2 . | . . . Level 3 . | . . . Level 4 . | . . . Level 5 . | . . . High Security . | . . . Max Security . | . . . Peak Influence 220 | . 220 130 Initial 82 | . . 82 Average 92 | . 125 60 Influence Increases 809 | . 501 308 Destroy 0b10 Robot/C 500 | . 320 180 Destroy 0b10 Robot/NC 20 | . 10 10 Destroy Leader 104 | . 64 40 Successful Hack 15 | . 15 . Disable Machine 45 | . . 45 Destroy Structure 50 | . 47 3 Lose Combat Pursuer 75 | . 45 30 Influence Decreases 687 | . 305 382 Entered New Map 114 | . . 114 Time Decay 453 | . 265 188 Lost Part 120 | . 40 80 Squads Dispatched 2 | . 2 . Investigation . | . . . Extermination . | . . . Reinforcement 2 | . 2 . Assault . | . . . Garrison . | . . . Intercept . | . . . Searches Triggered . | . . . Construction Impeded . | . . . Haulers Reinforced . | . . . Active Scanning Responses . | . . . Cargo Convoy Interrupts . | . . . Stealth | -11 -10 -9 --------- Run | Yrd Mat Mat Distress Signals 4 | . 1 3 Communications Jammed . | . . . Distress Signals . | . . . Times Spotted 43 | . 22 21 Peak Tracking Total 12 | . 5 12 Tactical Retreats 2 | . 1 1 Traps | -11 -10 -9 ------- Run | Yrd Mat Mat Traps Triggered 2 | . 1 1 Indirectly . | . . . Trap Hack Attempts . | . . . Triggered . | . . . Disarmed . | . . . Reprogrammed . | . . . Reused . | . . . Traps Extracted . | . . . Installed . | . . . Triggered . | . . . Machines | -11 -10 -9 ---------- Run | Yrd Mat Mat Machines Disabled 3 | . . 3 Max in Single Turn 1 | . . 1 Machines Repaired . | . . . Machines Dismantled . | . . . Machines Sabotaged . | . . . Overloaded Fab Kills . | . . . Hacking | -11 -10 -9 --------- Run | Yrd Mat Mat Machines Accessed 1 | . 1 . Terminals 1 | . 1 . Fabricators . | . . . Repair Stations . | . . . Recycling Units . | . . . Scanalyzers . | . . . Garrison Access . | . . . Total Hacks 5 | . 5 . Successful 3 | . 3 . Failed 2 | . 2 . Catastrophic 1 | . 1 . Database Lockouts . | . . . Manual . | . . . Terminals 5 | . 5 . Fabricators . | . . . Repair Stations . | . . . Recycling Units . | . . . Scanalyzers . | . . . Garrison Access . | . . . Terminal Hacks 3 | . 3 . Maintenance Status 1 | . 1 . Hauler Manifests 1 | . 1 . Registered Components 1 | . 1 . Fabricator Hacks . | . . . Repair Station Hacks . | . . . Recycling Unit Hacks . | . . . Scanalyzer . | . . . Garrison Access Hacks . | . . . Unauthorized Hacks . | . . . Terminals . | . . . Fabricators . | . . . Repair Stations . | . . . Recycling Units . | . . . Scanalyzers . | . . . Garrison Access . | . . . Data Cores Recovered . | . . . Used . | . . . Hacking Detections 1 | . 1 . Full Trace Events . | . . . Feedback Events . | . . . Feedback Blocked . | . . . Robot Schematics Acquired . | . . . Robots Built . | . . . Authchips . | . . . Time . | . . . Total Robot Build Rating . | . . . Part Schematics Acquired . | . . . Parts Built . | . . . Authchips . | . . . Time . | . . . Total Part Build Rating . | . . . Part Studies Acquired . | . . . Parts Repaired . | . . . Time . | . . . Parts Recycled . | . . . Recycled Matter . | . . . Retrieved Matter . | . . . Retrieved Components . | . . . Parts Scanalyzed . | . . . Part Schematics Acquired . | . . . Parts Damaged . | . . . Bothacking | -11 -10 -9 ------------ Run | Yrd Mat Mat Used RIF Installer . | . . . Robots Hacked . | . . . Non-combat . | . . . Combat . | . . . Robot Hacks Applied . | . . . Relay Couplers Released . | . . . Fabnet Peak Effective % . | . . . Robots Rewired . | . . . Allies Hacked . | . . . Hacks Repelled . | . . . Allies | -11 -10 -9 -------- Run | Yrd Mat Mat Total Allies . | . . . Largest Group . | . . . Highest-Rated Group . | . . . Highest-Rated Ally . | . . . Total Orders . | . . . Ally Attacks . | . . . Total Damage . | . . . Kills . | . . . Allies Corrupted . | . . . Allies Melted . | . . . Intel | -11 -10 -9 ------- Run | Yrd Mat Mat Active Infowar (turns) 261 | . . 261 Sensors 261 | . . 261 Robot Analysis Total . | . . . Derelict Logs Recovered . | . . . Drone Launches . | . . . Drone Recoveries . | . . . Exploration | -11 -10 -9 ------------- Run | Yrd Mat Mat Turns Passed 1200 | 91 686 423 Spaces Moved 602 | 52 317 233 Core 12 | 4 . 8 Treads 365 | 48 317 . Legs 225 | . . 225 Wheels . | . . . Hover . | . . . Flight . | . . . Fastest Speed 50 | 50 160 50 Average Speed 143 | 151 160 118 Slowest Speed 160 | 160 160 120 Overloaded Moves . | . . . Propulsion Burnouts . | . . . Robots Hopped . | . . . Potential Cave-ins . | . . . Cave-ins Triggered . | . . . Exploration Rate (%) 26 | 4 48 26 Regions Visited 2 Branch Regions . Pre-discovered Areas . | . . . Known Exits Taken . | . . . Unknown Exits Taken 2 | 1 1 . Scrap Searched . | . . . Spaces Dug . | . . . Terrain Destroyed 53 | . 50 3 Melee . | . . . Projectile . | . . . AOE 53 | . 50 3 Terrain Rammed . | . . . Walls Destroyed . | . . . Machines Disabled . | . . . Actions | -11 -10 -9 --------- Run | Yrd Mat Mat Total 782 | 60 402 320 Wait 3 | . 2 1 Move 600 | 51 316 233 Hop . | . . . Pick Up 14 | . 8 6 Fast Attach 19 | 6 8 5 Attach 10 | . 1 9 Detach 7 | . 1 6 Swap 3 | . 3 . Drop 8 | . 3 5 Fire 111 | . 59 52 Melee . | . . . Ram 2 | . . 2 Kick 1 | . . 1 Crush 4 | 3 1 . Escape Stasis . | . . . Rewire . | . . . Trap . | . . . Miscellaneous . | . . . Route ------- -11/Scrapyard -10/Materials (discovered 3 exits: [*Mat x2] / [*Min]) -9/Materials History --------- Turn | Location | Event 8 | -11/Scrapyard | Discovered new exit (range 15) 92 | -11/Scrapyard | Entered Materials 179 | -10/Materials | Discovered new exit (range 8) 299 | -10/Materials | Discovered new exit (range 10) 309 | -10/Materials | Lost 3 parts (1p1n1u) 334 | -10/Materials | Build established: Mutant 360 | -10/Materials | Core integrity fell below 50% 654 | -10/Materials | Discovered new exit (range 7) 722 | -10/Materials | Build established: Scavenger-Mutant 778 | -10/Materials | Entered another Materials area 778 | -9/Materials | Evolved 2 slots: Propulsion x2 1063 | -9/Materials | Lost 3 parts (1u2w) 1191 | -9/Materials | Core integrity fell below 50% 1197 | -9/Materials | Core integrity fell below 20% 1201 | -9/Materials | Destroyed by Y-45 Defender with Heavy Assault Rifle Last Messages --------------- 01171_ S-10 Pest destroyed. 01172_ K-01 Serf collects debris. 01179_ Aluminum Leg destroyed. 01179_ K-01 Serf collects debris. 01185_ Imp. Ion Engine destroyed. 01185_ S-10 Pest destroyed. 01185_ K-01 Serf collects debris. 01188_ Aluminum Leg destroyed. 01188_ K-01 Serf destroyed. 01192_ Dropped Med. Storage Unit. 01193_ Y-45 Defender destroyed. 01193_ Acquired 10 matter. 01194_ Slammed into Y-45 Defender. 01197_ Acquired Scythe. Only a single melee weapon may be active at a time, Scythe automatically deactivated. (Secondary inactive melee weapons have a chance to conduct follow-up attacks, see the manual.) Overweight warning: You are carrying more than your current propulsion can efficiently support, which slows movement; see status page ('s') or the top of the parts list for the specific mass vs. support values. Map ----- +----------------------------------------------------+ | ?????????????????????????????????????????????? | | ?????????????????????????????????????????????? | | ?????????????????????????????????????????????? | | ?????????????????????????????????????????????? | | ?????????????????????????????????????????????? | | ?????????????????????????????????????????????? | | ?????????????????????????????????????????????? | | ?????????????????????????????????????????????? | | ?????????????????????????????????????????????? | | ???? ????????????????????????????????????????? | | ?? ???????????????????????????????????????? | | ??# ?????????????????????? ???????????????? | | ??# ?????????????????????? #??????????????? | | ??# ????????????????????# #??????????????? | | ??# +?????????????????? # #??????????????? | | ??# #?????????????????? # #??????????????? | | ??# #?????????????????" # #??????????????? | | ??# #?????????????????" # #??? ??????????? | | ??# #?????????????????" # #??//[ ????????? | | ??# #????????????????? ? #? /[] ????????? | | ??# ##################+## # /[] ????????? | | ??# + ???????????? | | ??# s= #??????????????? | | ??# r [ Y s%[#??????????????? | | ### ###############%[% Y###??????????????? | | #?????????????#*!!@ #????????????????? | | #?????????????#!%!! /#????????????????? | | #?????????????#!=!! /#????????????????? | | "" #?????????????########????????????????? | | " #?????????????????????????????????????? | | #?????????????????????????????????????? | | #?????????????????????????????????????? | | % #?????????????????????????????????????? | | ##????????????????????????????????????? | | ????????????????????????????????? | | ??????????????????????????????? | | ??????????????????????????????? | | ########### ??????????????????????????????? | | #?????????????????????????????????????????? | | !#?????????????????????????????????????????? | | !!##?????????????????????????????????????????? | | ###??????????????????????????????????????????? | | ?????????????????????????????????????????????? | | ??????#######????????????????????????????????? | | ??????# #????????????????????????????????? | | ??????# """ #????????????????????????????????? | | ??????# """ #????????????????????????????????? | | ??????# """ #????????????????????????????????? | | ####### """ #????????????????????????????????? | | # #????????????????????????????????? | +----------------------------------------------------+ Best States ------------- Heat Dissipation 42 Energy Generation 12 Energy Capacity 265 Matter Stores 300 Matter Capacity 300 Sight Range 16 Robot Scan Range 15 Terrain Scan Density 10 Armor Coverage 150 Evasion (%) 55 Recoil Reduction 2 Item Schematics ----------------- None Robot Schematics ------------------ None Fabricated ------------ Nothing Repaired ---------- Nothing Studied --------- None Alien Tech Used ----------------- None Achievements -------------- For Emergencies Only There's More Where That Came From Challenges ------------ None Game ------ Seed BehemothFortressChaincannon Manual? 0 Play Time 00:15:53 Cumulative 21.0 hours Start 2026.09.21 @ 22:49:14 End 2026.09.21 @ 23:01:08 Sessions 1 Manual Loads 0 Difficulty Rogue Special Mode None Game No. 94 Rogue 91 Adventurer 3 Explorer 0 Win Type - Total 0 Types 0/0/0/0/0/0/0/0/0/0 Lore% 8 Gallery% 18 Achievement% 11 Wizard Run 0 Options --------- Layout 0 ASCII 0 Keyboard 0 Movement Numpad Keybinds 0 Fullscreen 1 Font 18/SmallcapsGlow Map View 76x50 Zoom Use 0% Tactical HUD 1 Map Filters NONE Filters NONE Steam 1 RUN: f4655026-d5b6-4b65-b51e-990ac19a7c31